Cogmind - Beta 9.6 @@@ ROGUE MODE // 2020.07.17 @ 15:38:46 Player: Mr.Manatee Result: Self-destructed Performance ------------- Evolutions (7) 3500 Regions Visited (18) 3600 Robots Destroyed (284) 1420 Value Destroyed (11738) 11738 Prototype IDs (41) 820 Alien Tech Used (1) 200 Bonus (712) 712 TOTAL SCORE: 21990 Bonus ------- High Alert Combat Kills 1137 Follower Combat Kills 617 Network Hubs Disabled 200 Met Data Miner 300 Friendly Fire -1542 Cogmind --------- Core Integrity 998/1300 Matter 249/300 Energy 89/100 System Corruption 11% Temperature Cool (27) Movement Core (650) Ox12 Location -3/Research Parts ------- > --- POWER (3) -------- (None) > --- PROPULSION (6) --- (None) > --- UTILITY (8) ------ High-capacity Storage Unit Experimental Optical Array Experimental Melee Analysis Suite Advanced Thermal Shield > --- WEAPON (4) ------- Heavy Pick > --- INVENTORY (12) --- Particle Reactor Particle Reactor Particle Reactor Advanced Heat Sink Improved Coolant Injector Matter Compressor (0) Stasis Canceller Improved System Backup Module Peak State ------------ > --- POWER ------------ Particle Reactor Particle Reactor Particle Reactor > --- PROPULSION ------- Advanced Heavy Treads Centrium Heavy Treads Centrium Wheel Centrium Wheel > --- UTILITY ---------- Advanced Heat Sink Experimental Cooling System High-capacity Storage Unit Experimental Optical Array Experimental Melee Analysis Suite Improved Core Shielding Advanced Thermal Shield Improved Dynamic Insulation System > --- WEAPON ----------- Gamma Rifle Quantum Rifle Nova Cannon Heavy Pick > --- INVENTORY -------- Particle Reactor Particle Reactor Particle Reactor Advanced Heat Sink Improved Coolant Injector Stasis Canceller Improved System Backup Module High-powered Shock Rifle Improved Heavy Laser Makeshift Shrapnel Gun KE Penetrator [Rating: 155] Favorites ----------- Power Cooled Ion Engine Engine Cooled Ion Engine Power Core Micro Fission Core Reactor Antimatter Reactor Propulsion Armored Leg Treads Improved Heavy Treads Leg Armored Leg Wheel Centrium Wheel Hover Unit Gyrokinetic Inverter Utility Large Storage Unit Device Advanced Heat Sink Storage Large Storage Unit Processor Experimental Optical Array Protection Improved Medium Armor Plating Weapon Cooled Particle Cannon Energy Gun Improved EM Shotgun Energy Cannon Cooled Particle Cannon Ballistic Gun KE Penetrator Launcher Precision Rocket Launcher Special Weapon Improved Plasma Cutter Slashing Weapon Plasma Sword Piercing Weapon Heavy Pick Build | -11 -10 -9 -9 -9 -7 -7 -7 -6 -6 -6 -6 -6 -6 -5 -4 -4 -4 -3 ------- Run | Scr Mat Mat Sto Rec Fac Low Dat Pro Fac Ext Cet Arc Hub Fac Fac Upp Upp Res Slots Evolved 14 | . . 2 . . 4 . . . 2 . . . . 2 2 . . 2 Power 2 | . . . . . . . . . 1 . . . . 1 . . . . Propulsion 4 | . . . . . 2 . . . . . . . . . 1 . . 1 Utility 6 | . . . . . 2 . . . 1 . . . . 1 1 . . 1 Weapon 2 | . . 2 . . . . . . . . . . . . . . . . Parts Attached 298 | 6 10 15 27 . 30 . . 15 27 4 5 2 8 69 16 9 21 34 Power 37 | 1 1 4 3 . 1 . . . 3 . 1 1 . 9 3 1 4 5 Engine 21 | 1 1 4 3 . 1 . . . 3 . 1 . . 3 2 . . 2 Core 11 | . . . . . . . . . . . . 1 . 6 . . 4 . Reactor 5 | . . . . . . . . . . . . . . . 1 1 . 3 Propulsion 56 | 2 3 2 3 . 12 . . 5 6 . . . . 10 3 . 4 6 Treads 9 | . . . . . . . . . . . . . . 1 3 . 1 4 Leg 41 | 2 3 2 3 . 12 . . 5 6 . . . . 7 . . 1 . Wheel 4 | . . . . . . . . . . . . . . . . . 2 2 Hover 2 | . . . . . . . . . . . . . . 2 . . . . Flight . | . . . . . . . . . . . . . . . . . . . Utility 77 | 1 2 1 5 . 6 . . 3 8 3 3 1 1 18 6 4 4 11 Device 39 | . . 1 4 . 1 . . 3 5 2 2 . . 8 4 2 1 6 Storage 9 | 1 1 . 1 . . . . . 1 . . . . . 1 . 2 2 Processor 6 | . . . . . . . . . . . . . . 2 . 1 1 2 Hackware . | . . . . . . . . . . . . . . . . . . . Protection 23 | . 1 . . . 5 . . . 2 1 1 1 1 8 1 1 . 1 Artifact . | . . . . . . . . . . . . . . . . . . . Weapon 128 | 2 4 8 16 . 11 . . 7 10 1 1 . 7 32 4 4 9 12 Energy Gun 52 | 1 2 3 13 . 1 . . 3 6 1 1 . 4 6 1 . 3 7 Energy Cannon 31 | . . 2 3 . 8 . . 3 2 . . . . 4 1 3 4 1 Ballistic Gun 28 | 1 2 1 . . 1 . . . . . . . 2 16 2 . 1 2 Ballistic Cannon . | . . . . . . . . . . . . . . . . . . . Launcher 7 | . . 2 . . 1 . . 1 1 . . . . 1 . 1 . . Special Weapon 5 | . . . . . . . . . . . . . . 4 . . . 1 Impact Weapon . | . . . . . . . . . . . . . . . . . . . Slashing Weapon 2 | . . . . . . . . . . . . . 1 1 . . . . Piercing Weapon 3 | . . . . . . . . . 1 . . . . . . . 1 1 Special Melee Weapon . | . . . . . . . . . . . . . . . . . . . Unidentified Prototypes 20 | . . 2 3 . 4 . . 1 3 . 1 . . 2 . . . 4 Parts Lost 133 | . 6 2 3 . 3 . . 11 6 . 3 . 11 42 5 2 19 20 Power 17 | . 1 . . . . . . . . . 1 . . 8 . . 3 4 Propulsion 22 | . . . . . 2 . . 3 . . . . 2 7 1 . 3 4 Utility 26 | . . 1 . . 1 . . 2 2 . 1 . 1 7 2 1 4 4 Weapon 68 | . 5 1 3 . . . . 6 4 . 1 . 8 20 2 1 9 8 Highest Loss Streak 18 | . 3 1 2 . 1 . . 5 2 . 2 . 6 14 3 1 7 18 Average Slot Usage (%) 90 | . 95 93 96 100 98 100 100 92 94 100 99 100 96 73 73 86 81 84 Engine 8 | . 12 9 10 11 7 7 7 7 13 13 12 9 6 3 6 7 . . Core 1 | . . . . . . . . . . . . 2 6 6 4 . 6 5 Treads 1 | . . . . . . . . . . . . . . . 2 15 9 7 Leg 19 | . 28 22 22 22 29 30 30 29 26 26 26 26 26 9 7 . . . Wheel 1 | . . . . . . . . . . . . . . . . . 8 13 Device 13 | . . 9 10 11 7 15 15 10 20 20 14 16 13 12 14 15 18 17 Storage 7 | . 25 11 10 11 7 7 7 7 6 6 6 6 6 5 5 5 5 5 Processor 1 | . . . . . . . . . . . . . . 3 5 6 8 7 Protection 5 | . 1 1 . . 13 7 7 4 3 6 11 9 12 5 4 5 . 3 Energy Gun 9 | . 12 17 36 44 3 . . 6 11 6 5 6 10 2 2 . 1 9 Energy Cannon 8 | . . 8 4 . 26 30 30 17 3 6 6 6 . 1 . 15 9 . Ballistic Gun 2 | . 13 4 . . . . . . . . . . 2 8 10 . 1 . Launcher 2 | . . 9 . . . . . 5 2 6 6 6 3 . . 2 3 . Piercing Weapon 1 | . . . . . . . . . 5 6 6 6 1 . . . . 4 Naked Turns . | . . . . . . . . . . . . . . . . . . . Heaviest Build 178 | 13 29 40 41 38 63 61 61 60 79 79 81 79 71 80 96 116 178 122 Greatest Support 180 | 20 20 23 23 23 73 50 50 80 80 64 64 64 64 64 180 180 180 150 Greatest Overweight (x) 12 | 2 1 1 1 1 1 1 1 1 1 1 1 1 1 12 5 . 4 3 Average Overweight (x) . | . . . . 1 . 1 1 . . 1 1 1 . 1 1 . 1 . Largest Inventory Capacity 30 | 6 12 10 10 10 10 10 10 10 10 10 10 10 10 10 10 10 30 24 Average Capacity 10 | 5 11 10 9 10 10 10 10 10 10 10 10 10 10 10 10 10 12 12 Most Carried 14 | 6 10 10 10 10 10 9 9 9 10 10 10 10 10 9 10 10 14 12 Average Carried 8 | 4 8 9 9 10 9 9 9 7 9 9 9 9 8 3 9 9 10 10 Final Capacity 12 | 6 10 10 10 10 10 10 10 10 10 10 10 10 10 10 10 10 10 12 Final Carried 10 | 6 9 10 10 10 9 9 9 8 10 10 10 10 8 8 10 10 7 8 Class Distribution -------------------- 24% | Tank 21% | Mutant 13% | Gunner 9% | Scavenger-Tank 7% | Scavenger-Mutant 6% | Scavenger-Gunner 4% | Generator-Tank 3% | Generator-Mutant Dominant Class ---------------- Mutant | -10/Materials Mutant | -9/Materials Gunner | -9/Storage Gunner | -9/Recycling Tank | -7/Factory Tank | -7/Lower Caves Tank | -7/Data Miner Tank | -6/Proximity Caves Mutant | -6/Factory Mutant | -6/Extension Tank | -6/Cetus Scavenger-Mutant | -6/Archives Scavenger-Mutant | -6/Hub_04(d) Scavenger-Gunner | -5/Factory Scavenger-Tank | -4/Factory Generator-Mutant | -4/Upper Caves Scavenger-Gunner | -4/Upper Caves Generator-Tank | -3/Research Resources | -11 -10 -9 -9 -9 -7 -7 -7 -6 -6 -6 -6 -6 -6 -5 -4 -4 -4 -3 ----------- Run | Scr Mat Mat Sto Rec Fac Low Dat Pro Fac Ext Cet Arc Hub Fac Fac Upp Upp Res Matter Collected 4769 | 260 116 210 351 9 296 10 . 316 355 60 306 59 40 1191 396 159 395 240 Remotely . | . . . . . . . . . . . . . . . . . . . Salvage Created 13490 | . 370 457 1415 162 1445 41 . 861 1879 571 663 305 523 2097 847 480 561 813 Parts 629 | . 21 32 77 15 65 6 . 32 96 15 25 10 30 89 30 11 30 45 Haulers Intercepted 15 | . . 2 6 . 2 . . . 2 . . . . 2 1 . . . Recyclers Shooed 9 | . . . 3 . . . . . . . . . . 2 1 . . 3 Parts Field Recycled . | . . . . . . . . . . . . . . . . . . . Retrieved Matter . | . . . . . . . . . . . . . . . . . . . Parts Self-Destructed 59 | . . . . . . 15 . 24 . . . . . . . 3 17 . Prevented 24 | . . . . . . . . . . . . . . . . 8 16 . Kills | -11 -10 -9 -9 -9 -7 -7 -7 -6 -6 -6 -6 -6 -6 -5 -4 -4 -4 -3 ------- Run | Scr Mat Mat Sto Rec Fac Low Dat Pro Fac Ext Cet Arc Hub Fac Fac Upp Upp Res Combat Hostiles Destroyed 213 | . 10 9 20 5 23 1 . 22 28 9 17 4 8 24 9 7 9 8 Melee 31 | . . . . . . . . . 10 2 . . 2 4 6 2 2 3 Guns 69 | . 8 6 14 5 . . . 2 3 . 1 1 5 16 3 . 2 3 Cannons 64 | . . . 5 . 23 1 . 9 8 5 4 3 . 1 . . 4 1 AOE 38 | . 1 3 1 . . . . 10 7 2 12 . . 2 . . . . Classes Destroyed 18 | . 2 6 2 1 3 . . 1 1 1 . . . . . . . 1 Worker 19 | . . 1 2 . . . . . 9 . . . 1 4 1 . . 1 Builder 10 | . . 2 1 . 1 . . . 4 . . . 1 1 . . . . Hauler 15 | . . 2 6 . 2 . . . 2 . . . . 2 1 . . . Recycler 7 | . . . 1 1 . . . . . . . . . 2 2 . . 1 Carrier 1 | . . . . . . . . . 1 . . . . . . . . . Mechanic 1 | . . . . . . . . . . . . . . . . . . 1 Operator 2 | . . . . . . . . . . 2 . . . . . . . . Drone 5 | . . . . 5 . . . . . . . . . . . . . . Watcher 11 | . . 1 2 . 1 . . . 5 1 1 . . . . . . . Swarmer 34 | . 2 3 4 . . . . 8 11 . 4 . . . 2 . . . Grunt 81 | . 8 3 10 . 12 . . 10 7 5 7 . 4 9 . 4 2 . Brawler 3 | . . . 1 . 2 . . . . . . . . . . . . . Duelist 3 | . . 1 . . . . . . . 1 1 . . . . . . . Protector 1 | . . . . . 1 . . . . . . . . . . . . . Sentry 32 | . . 2 6 . 3 . . 1 4 1 . 4 3 4 1 1 1 1 Hunter 10 | . . . . . 1 . . . . . 1 . . 5 1 . 2 . Programmer 38 | . . . . . 4 1 . 2 6 . . . 1 6 5 2 4 7 Behemoth 2 | . . . . . . . . 1 . 1 . . . . . . . . Cetus Guard 4 | . . . . . . . . . . . 4 . . . . . . . Enhanced Grunt 1 | . . . . . . . . 1 . . . . . . . . . . Thug 2 | . . . . . . . . . . . 2 . . . . . . . Butcher 1 | . . . . . . . . . . . 1 . . . . . . . Guerrilla 1 | . . . . . . . . . . 1 . . . . . . . . Best Kill Streak 9 | . 4 5 6 3 4 1 . 7 9 3 8 2 3 8 3 4 2 4 Combat Bots Only 8 | . 4 3 5 2 4 1 . 7 4 3 8 2 3 5 2 4 2 3 Max Kills in Single Turn 8 | . 1 2 3 1 2 1 . 3 8 2 6 1 2 5 1 2 1 1 Gunslinging 1 | . . . 1 . . . . . . . . . . . . . . . Exploded 6 | . 1 1 1 . . . . 3 3 1 6 . . 2 . . . . Melee 1 | . . . . . . . . . 1 1 . . 1 1 1 1 1 1 Uniques/NPCs Destroyed . | . . . . . . . . . . . . . . . . . . . Combat | -11 -10 -9 -9 -9 -7 -7 -7 -6 -6 -6 -6 -6 -6 -5 -4 -4 -4 -3 -------- Run | Scr Mat Mat Sto Rec Fac Low Dat Pro Fac Ext Cet Arc Hub Fac Fac Upp Upp Res Damage Taken 24569 | . 840 381 815 . 1422 10 . 1244 1214 280 1008 492 1417 6642 1743 712 2641 3708 Core 2476 | . 77 26 168 . 163 . . 152 100 9 89 . 90 902 157 19 222 302 Absorbed by Shields 658 | . . . . . 30 4 . 108 347 141 28 . . . . . . . Reduced by Siege Mode 278 | . . . . . . . . . . . . . . . . . 11 267 Core Remaining (%) 59 | 100 69 . . 51 . . . 55 . . . . 66 9 . . 65 . Volleys Fired 590 | . 45 28 58 9 63 2 . 38 53 34 21 21 17 102 23 11 28 37 Largest 4 | . 2 4 4 4 4 4 . 4 4 3 3 3 3 4 3 3 3 3 Hottest 281 | . 60 225 249 180 170 170 . 260 252 165 228 174 173 217 181 281 281 221 Shots Fired 1458 | . 80 66 194 36 233 8 . 113 125 59 55 35 35 219 63 13 47 77 Gun 842 | . 80 49 138 36 . . . 31 89 21 18 13 33 192 62 . 16 64 Cannon 543 | . . 8 56 . 233 8 . 66 30 34 20 21 2 14 1 9 29 12 Launcher 64 | . . 9 . . . . . 16 6 4 17 1 . 5 . 4 2 . Special 9 | . . . . . . . . . . . . . . 8 . . . 1 Kinetic 304 | . 42 21 . . . . . . . . . . 7 152 59 . 15 8 Thermal 774 | . 18 21 68 . 233 8 . 97 114 55 38 34 14 45 1 6 5 17 Explosive 53 | . . 9 . . . . . 16 6 4 17 1 . . . . . . Electromagnetic 326 | . 20 15 126 36 . . . . 5 . . . 14 22 3 7 27 51 Robot Hit Streak 20 | . 11 7 20 4 20 4 . 10 11 14 14 20 10 10 13 7 11 16 Robot Miss Streak 9 | . 5 2 5 9 3 2 . 4 8 3 2 2 2 6 3 3 2 2 Penetration Max 1 | . . . . . . . . . . . . . 1 1 1 . . 1 Secondary Targets 7 | . 3 . 3 . . . . . . . . . . 1 . . . . Max Gunslinging Chain 1 | . 1 . 1 . . . . . . . . . . 1 . . . . Shots Hit Robots 1055 | . 55 39 135 9 155 4 . 64 106 45 34 29 29 167 61 8 34 81 Core Hits 545 | . 17 25 63 7 55 1 . 46 74 28 53 12 17 71 22 4 20 30 Critical Hits 28 | . . . 1 . 1 . . 1 . . 2 . . 10 10 . 2 1 Critical Kills 11 | . . . . . . . . 1 . . . . . 3 4 . 2 1 Critical Parts Destroyed 16 | . . . 1 . 1 . . . . . 2 . . 6 6 . . . Melee Attacks 161 | . . . . . . . . . 54 6 2 5 5 28 45 . . 16 Impact . | . . . . . . . . . . . . . . . . . . . Slashing 78 | . . . . . . . . . . . . . 5 28 45 . . . Piercing 83 | . . . . . . . . . 54 6 2 5 . . . . . 16 Sneak Attacks 10 | . . . . . . . . . 4 2 . . . 1 . . . 3 Combat Hostiles . | . . . . . . . . . . . . . . . . . . . Follow-up Attacks . | . . . . . . . . . . . . . . . . . . . Damage Inflicted 34850 | . 948 755 2652 206 4097 68 . 2185 4801 2536 3005 1107 1006 5303 2184 741 1420 1836 Guns 10593 | . 663 386 1457 180 . . . 369 859 369 316 251 571 3107 982 . 414 669 Cannons 10404 | . . 62 434 . 4097 68 . 938 743 1211 584 685 34 271 34 219 534 490 Explosions 8899 | . 285 307 761 26 . . . 878 1771 692 2105 171 252 989 51 452 159 . Melee 4505 | . . . . . . . . . 1428 264 . . 149 870 1117 . . 677 Ramming 398 | . . . . . . . . . . . . . . 15 . 70 313 . Kinetic 4504 | . 334 99 . . . . . . . . . . 163 2393 937 . 414 164 Thermal 15529 | . 419 186 996 26 4097 68 . 1307 2224 1759 900 936 174 1581 51 123 73 609 Explosive 5418 | . . 307 345 . . . . 878 1099 513 2105 171 . . . . . . Electromagnetic 4496 | . 195 163 1311 180 . . . . 50 . . . 520 444 79 548 620 386 Impact . | . . . . . . . . . . . . . . . . . . . Slashing 2136 | . . . . . . . . . . . . . 149 870 1117 . . . Piercing 2369 | . . . . . . . . . 1428 264 . . . . . . . 677 Highest Corruption 17 | . . . . . . . . . 1 1 1 1 3 14 16 16 17 11 Average Corruption 7 | . . . . . . . . . 1 1 1 1 1 9 14 16 16 6 Corruption Purged . | . . . . . . . . . . . . . . . . . . . Effects 210 | . . . . . . . . . 1 4 1 1 3 66 27 43 60 4 Message Errors 37 | . . . . . . . . . 1 1 . 1 . 10 7 9 8 . Matter Fused 38 | . . . . . . . . . . . . . . 11 3 9 14 1 Heat Flow Errors 13 | . . . . . . . . . . . . . . 4 3 1 5 . Energy Discharges 11 | . . . . . . . . . . . . . . 3 1 4 3 . Parts Rejected 1 | . . . . . . . . . . . . . . 1 . . . . Data Loss (minor) 20 | . . . . . . . . . . 2 1 . 2 6 1 5 3 . Data Loss (major) 9 | . . . . . . . . . . . . . . 3 1 1 4 . Misfires 7 | . . . . . . . . . . . . . . 2 1 . 4 . Alerts 3 | . . . . . . . . . . . . . . . . 2 1 . Misdirections 26 | . . . . . . . . . . . . . . 5 2 6 13 . Targeting Errors 33 | . . . . . . . . . . 1 . . . 13 8 4 5 2 Weapon Failures 12 | . . . . . . . . . . . . . 1 8 . 2 . 1 Overload Shots 41 | . . . . . . . . 3 7 11 11 9 . . . . . . Effects 3 | . . . . . . . . . 1 . 2 . . . . . . . Energy Bleed 2 | . . . . . . . . . 1 . 1 . . . . . . . Short Circuit 1 | . . . . . . . . . . . 1 . . . . . . . Overflow Damage 1226 | . 109 11 9 . 124 . . 63 340 62 50 13 . 229 44 42 12 118 Projectiles 219 | . . . . . 124 . . 20 11 3 . 1 . 1 . 3 . 56 Explosions 679 | . 109 11 9 . . . . 43 201 59 50 12 . 146 . 39 . . Melee 328 | . . . . . . . . . 128 . . . . 82 44 . 12 62 Knockbacks 3 | . . . . . . . . . . . . . . . . . 3 . Impact 3 | . . . . . . . . . . . . . . . . . 3 . Kinetic . | . . . . . . . . . . . . . . . . . . . Secondary . | . . . . . . . . . . . . . . . . . . . Self-Inflicted Damage 942 | . 85 95 165 . . . . 175 104 52 34 12 109 6 76 29 . . Shots 22 | . 1 2 4 . . . . 5 2 1 3 1 1 . 1 1 . . Rammed 44 | . . . . . . . . . . . . . . 8 . 5 31 . Targets Rammed 46 | . . . . . . . . . . . . . . 8 . 7 31 . Kicked . | . . . . . . . . . . . . . . . . . . . Crushed 2 | . . . . . . . . . . . . . . . . 2 . . Highest Temperature 444 | . 110 223 336 78 48 15 . 193 199 174 375 199 188 444 359 390 391 187 Average Temperature 93 | . 53 54 92 34 19 10 . 81 71 71 114 73 81 107 148 115 139 80 Received Heat Transfer 3422 | . 342 102 276 . 540 . . 192 104 54 126 63 408 810 27 63 213 102 Effects 14 | . . . 1 . . . . . . . . . . 6 3 2 2 . Shutdowns 3 | . . . . . . . . . . . . . . . 1 2 . . Energy Bleed 2 | . . . 1 . . . . . . . . . . 1 . . . . Interference 7 | . . . . . . . . . . . . . . 5 2 . . . Damage (minor) 2 | . . . . . . . . . . . . . . . . . 2 . Siege Activations 2 | . . . . . . . . . . . . . . . . . 1 1 Total Turns 73 | . . . . . . . . . . . . . . . . . 18 55 Longest Duration 55 | . . . . . . . . . . . . . . . . . 18 55 Robots Corrupted 10 | . 1 . . . . . . . . . . . 1 1 . 5 1 1 Combat Hostiles 10 | . 1 . . . . . . . . . . . 1 1 . 5 1 1 Parts Fried 27 | . 1 3 7 . . . . . . . . . . 2 1 7 5 1 Impact Corruptions 1 | . . . . . . . . . . . . . . . . . 1 . Robots Melted 1 | . . . . . . . . 1 . . . . . . . . . . Combat Hostiles 1 | . . . . . . . . 1 . . . . . . . . . . Parts Melted 34 | . . 1 4 . 9 . . 2 6 2 . 5 . 4 . . . 1 Heat Transferred 21031 | . 450 407 1847 50 5436 87 . 2116 2977 2295 1231 1411 324 1647 50 111 74 518 Parts Sabotaged . | . . . . . . . . . . . . . . . . . . . Parts Stolen . | . . . . . . . . . . . . . . . . . . . Parts Stripped . | . . . . . . . . . . . . . . . . . . . Power Chain Reactions 9 | . . . 7 1 . . . . . . . . . . 1 . . . Missiles Intercepted . | . . . . . . . . . . . . . . . . . . . Alert | -11 -10 -9 -9 -9 -7 -7 -7 -6 -6 -6 -6 -6 -6 -5 -4 -4 -4 -3 ------- Run | Scr Mat Mat Sto Rec Fac Low Dat Pro Fac Ext Cet Arc Hub Fac Fac Upp Upp Res Peak Influence 1165 | . 165 211 317 206 1165 . . . 1127 896 435 327 473 298 183 . . 190 Average Influence 364 | . 85 118 159 145 960 . . . 370 622 344 280 243 158 60 . . 63 Maximum Alert Level 4 | . . 1 1 1 4 . . . 4 3 2 1 2 1 . . . . Low Security (%) 46 | 100 100 89 63 96 . . . . 38 . 8 20 42 54 100 . . 100 Level 1 21 | . . 10 36 3 . . . . 27 26 49 79 43 45 . . . . Level 2 7 | . . . . . . . . . 20 23 41 . 14 . . . . . Level 3 19 | . . . . . 90 . . . 3 50 . . . . . . . . Level 4 3 | . . . . . 9 . . . 10 . . . . . . . . . Level 5 . | . . . . . . . . . . . . . . . . . . . High Security . | . . . . . . . . . . . . . . . . . . . Max Security . | . . . . . . . . . . . . . . . . . . . Squads Dispatched 43 | . 4 1 5 . 8 . . . 8 2 . . 4 7 2 . . 2 Investigation 6 | . 2 . 1 . 1 . . . 2 . . . . . . . . . Extermination 13 | . . . . . 3 . . . 3 . . . 1 2 2 . . 2 Reinforcement 17 | . 2 1 1 . 2 . . . 2 2 . . 2 5 . . . . Assault 3 | . . . . . 2 . . . 1 . . . . . . . . . Garrison 4 | . . . 3 . . . . . . . . . 1 . . . . . Intercept . | . . . . . . . . . . . . . . . . . . . Construction Impeded 1 | . . . . . . . . . . . . . . 1 . . . . Haulers Reinforced 2 | . . . . . 1 . . . . . . . . 1 . . . . Stealth | -11 -10 -9 -9 -9 -7 -7 -7 -6 -6 -6 -6 -6 -6 -5 -4 -4 -4 -3 --------- Run | Scr Mat Mat Sto Rec Fac Low Dat Pro Fac Ext Cet Arc Hub Fac Fac Upp Upp Res Distress Signals 9 | . . 2 1 . . . . . . 1 2 . 1 1 1 . . . Communications Jammed 11 | . . . . . . . . . . 8 . 3 . . . . . . Distress Signals 11 | . . . . . . . . . . 8 . 3 . . . . . . Times Spotted 359 | . 16 18 35 11 38 5 . 28 40 24 20 7 23 34 18 9 14 19 Peak Tracking Total 9 | . 7 6 5 4 5 4 . 7 4 4 8 1 9 6 5 4 4 8 Tactical Retreats 23 | . 2 3 3 . 2 . . 1 4 1 . . 1 2 1 1 2 . Traps | -11 -10 -9 -9 -9 -7 -7 -7 -6 -6 -6 -6 -6 -6 -5 -4 -4 -4 -3 ------- Run | Scr Mat Mat Sto Rec Fac Low Dat Pro Fac Ext Cet Arc Hub Fac Fac Upp Upp Res Traps Triggered 7 | . 2 . . . 1 . . . 1 2 . . 1 . . . . . Indirectly . | . . . . . . . . . . . . . . . . . . . Trap Hack Attempts . | . . . . . . . . . . . . . . . . . . . Triggered . | . . . . . . . . . . . . . . . . . . . Disarmed 3 | . . . 3 . . . . . . . . . . . . . . . Reprogrammed 5 | . . 5 . . . . . . . . . . . . . . . . Reused 1 | . . 1 . . . . . . . . . . . . . . . . Traps Extracted . | . . . . . . . . . . . . . . . . . . . Installed . | . . . . . . . . . . . . . . . . . . . Triggered 2 | . . 1 . . . . . . . . . . . . . 1 . . Machines | -11 -10 -9 -9 -9 -7 -7 -7 -6 -6 -6 -6 -6 -6 -5 -4 -4 -4 -3 ---------- Run | Scr Mat Mat Sto Rec Fac Low Dat Pro Fac Ext Cet Arc Hub Fac Fac Upp Upp Res Machines Disabled 46 | . 1 3 3 . 2 . . 4 11 2 4 1 7 3 4 . . 1 Max in Single Turn 10 | . 1 2 1 . 1 . . 1 10 2 1 1 5 2 1 . . 1 Garrison Access 3 | . . . 1 . . . . . 2 . . . . . . . . . Network Hub 1 | . . . . . . . . . . . . . 1 . . . . . Energy Cycler 2 | . . . . . . . . . . 2 . . . . . . . . Machines Sabotaged . | . . . . . . . . . . . . . . . . . . . Garrisons Compromised . | . . . . . . . . . . . . . . . . . . . Overloaded Fab Kills . | . . . . . . . . . . . . . . . . . . . Fab Network Shutdowns . | . . . . . . . . . . . . . . . . . . . Hacking | -11 -10 -9 -9 -9 -7 -7 -7 -6 -6 -6 -6 -6 -6 -5 -4 -4 -4 -3 --------- Run | Scr Mat Mat Sto Rec Fac Low Dat Pro Fac Ext Cet Arc Hub Fac Fac Upp Upp Res Machines Accessed 70 | . 1 5 11 5 7 . 4 1 11 6 4 1 2 4 4 . . 4 Terminals 44 | . 1 4 9 5 3 . . . 5 6 4 . 2 1 3 . . 1 Fabricators 2 | . . . . . . . . . . . . . . 1 . . . 1 Repair Stations 6 | . . 1 1 . 2 . . . . . . . . 1 . . . 1 Recycling Units 5 | . . . . . 1 . . . 3 . . . . . 1 . . . Scanalyzers 4 | . . . . . 1 . . . 1 . . . . 1 . . . 1 Garrison Access 3 | . . . 1 . . . . . 2 . . . . . . . . . Total Hacks 253 | . 2 19 43 16 15 . 25 1 28 26 11 25 5 13 10 . . 14 Successful 156 | . 1 6 30 6 7 . 25 1 13 19 5 25 . 8 3 . . 7 Failed 96 | . 1 13 12 10 8 . . . 15 7 6 . 5 5 7 . . 7 Catastrophic 18 | . . 1 . 4 3 . . . 1 1 1 . . 2 4 . . 1 Database Lockouts 1 | . . . 1 . . . . . . . . . . . . . . . Manual 94 | . 2 10 24 11 9 . . . 9 20 3 . 5 . 1 . . . Terminals 147 | . 2 17 34 16 7 . . . 15 26 11 . 5 2 9 . . 3 Fabricators 5 | . . . . . . . . . . . . . . 4 . . . 1 Repair Stations 19 | . . 2 7 . 5 . . . . . . . . 2 . . . 3 Recycling Units 6 | . . . . . 1 . . . 4 . . . . . 1 . . . Scanalyzers 18 | . . . . . 2 . . . 4 . . . . 5 . . . 7 Garrison Access 7 | . . . 2 . . . . . 5 . . . . . . . . . Terminal Hacks 99 | . 1 5 12 5 . . 25 1 6 12 3 25 . . 2 . . 2 Record 43 | . . . . . . . 11 1 3 . 2 25 . . . . . 1 Part Schematic 9 | . . . 1 . . . 7 . . 1 . . . . . . . . Robot Schematic 4 | . . . . . . . 4 . . . . . . . . . . . Robot Analysis 2 | . . . 1 . . . . . . 1 . . . . . . . . Prototype ID Bank 9 | . . 2 . 1 . . 3 . . 2 1 . . . . . . . Open Door 5 | . . . 4 . . . . . . 1 . . . . . . . . Level Access Points 1 | . . . . . . . . . . 1 . . . . . . . . Branch Access Points 2 | . . . 1 . . . . . . 1 . . . . . . . . Terminal Index 2 | . . . . . . . . . . 1 . . . . . . . 1 Alert Level 3 | . . . . 2 . . . . . 1 . . . . . . . . Unreport Threat 6 | . . . 1 . . . . . . 3 . . . . 2 . . . Disarm Traps 1 | . . . 1 . . . . . . . . . . . . . . . Reprogram Traps 1 | . . 1 . . . . . . . . . . . . . . . . Maintenance Status 1 | . . . 1 . . . . . . . . . . . . . . . Surveillance Status 1 | . . . . 1 . . . . . . . . . . . . . . Hauler Manifests 2 | . . 1 . . . . . . 1 . . . . . . . . . Registered Components 3 | . . 1 1 . . . . . 1 . . . . . . . . . Registered Prototypes 1 | . . . . . . . . . 1 . . . . . . . . . Zone Layout 3 | . 1 . 1 1 . . . . . . . . . . . . . . Fabricator Hacks 4 | . . . . . . . . . . . . . . 3 . . . 1 Load Schematic 2 | . . . . . . . . . . . . . . 2 . . . . Build 2 | . . . . . . . . . . . . . . 1 . . . 1 Repair Station Hacks 13 | . . 1 6 . 3 . . . . . . . . 2 . . . 1 Scan Component 8 | . . 1 3 . 2 . . . . . . . . 1 . . . 1 Repair 5 | . . . 3 . 1 . . . . . . . . 1 . . . . Recycling Unit Hacks 3 | . . . . . . . . . 2 . . . . . 1 . . . Retrieve Components 3 | . . . . . . . . . 2 . . . . . 1 . . . Scanalyzer 7 | . . . . . . . . . 1 . . . . 3 . . . 3 Insert Component 5 | . . . . . . . . . 1 . . . . 2 . . . 2 Analyze 2 | . . . . . . . . . . . . . . 1 . . . 1 Garrison Access Hacks 1 | . . . 1 . . . . . . . . . . . . . . . Seal Access 1 | . . . 1 . . . . . . . . . . . . . . . Unauthorized Hacks 29 | . . . 11 1 4 . . . 4 7 2 . . . . . . . Terminals 26 | . . . 11 1 3 . . . 2 7 2 . . . . . . . Track 6 | . . . 3 . . . . . . 2 1 . . . . . . . Botnet 17 | . . . 6 1 3 . . . 2 4 1 . . . . . . . Disrupt 2 | . . . 1 . . . . . . 1 . . . . . . . . Operators 1 | . . . 1 . . . . . . . . . . . . . . . Fabricators . | . . . . . . . . . . . . . . . . . . . Repair Stations . | . . . . . . . . . . . . . . . . . . . Recycling Units . | . . . . . . . . . . . . . . . . . . . Scanalyzers 1 | . . . . . 1 . . . . . . . . . . . . . Extract 1 | . . . . . 1 . . . . . . . . . . . . . Garrison Access 2 | . . . . . . . . . 2 . . . . . . . . . Jam 2 | . . . . . . . . . 2 . . . . . . . . . Data Cores Recovered . | . . . . . . . . . . . . . . . . . . . Used . | . . . . . . . . . . . . . . . . . . . Hacking Detections 60 | . 1 5 10 5 7 . . . 9 6 4 . 2 4 3 . . 4 Full Trace Events 1 | . . 1 . . . . . . . . . . . . . . . . Feedback Events . | . . . . . . . . . . . . . . . . . . . Feedback Blocked . | . . . . . . . . . . . . . . . . . . . Robot Schematics Acquired 4 | . . . . . . . 4 . . . . . . . . . . . Robots Built . | . . . . . . . . . . . . . . . . . . . Matter . | . . . . . . . . . . . . . . . . . . . Time . | . . . . . . . . . . . . . . . . . . . Total Robot Build Rating . | . . . . . . . . . . . . . . . . . . . Part Schematics Acquired 14 | . . . 1 . 3 . 7 . . 1 . . . 1 . . . 1 Parts Built 1 | . . . . . . . . . . . . . . 1 . . . . Matter 596 | . . . . . . . . . . . . . . 318 . . . 278 Time 238 | . . . . . . . . . . . . . . 169 . . . 69 Total Part Build Rating 6 | . . . . . . . . . . . . . . 6 . . . . Parts Repaired 5 | . . . 3 . 1 . . . . . . . . 1 . . . . Time 153 | . . . 90 . 19 . . . . . . . . 44 . . . . Parts Recycled . | . . . . . . . . . . . . . . . . . . . Recycled Matter . | . . . . . . . . . . . . . . . . . . . Retrieved Matter . | . . . . . . . . . . . . . . . . . . . Retrieved Components 10 | . . . . . . . . . 2 . . . . . 8 . . . Parts Scanalyzed 3 | . . . . . . . . . 1 . . . . 1 . . . 1 Part Schematics Acquired 2 | . . . . . . . . . . . . . . 1 . . . 1 Parts Damaged . | . . . . . . . . . . . . . . . . . . . Bothacking | -11 -10 -9 -9 -9 -7 -7 -7 -6 -6 -6 -6 -6 -6 -5 -4 -4 -4 -3 ------------ Run | Scr Mat Mat Sto Rec Fac Low Dat Pro Fac Ext Cet Arc Hub Fac Fac Upp Upp Res Used RIF Installer . | . . . . . . . . . . . . . . . . . . . Robots Hacked 1 | . . . . . . . . . . . . . . . . . . 1 Non-combat 1 | . . . . . . . . . . . . . . . . . . 1 Combat . | . . . . . . . . . . . . . . . . . . . Robot Hacks Applied 1 | . . . . . . . . . . . . . . . . . . 1 parse_system 1 | . . . . . . . . . . . . . . . . . . 1 Relay Couplers Released . | . . . . . . . . . . . . . . . . . . . Robots Rewired 9 | . . . . . . . . . . 9 . . . . . . . . Allies Hacked . | . . . . . . . . . . . . . . . . . . . Hacks Repelled . | . . . . . . . . . . . . . . . . . . . Allies | -11 -10 -9 -9 -9 -7 -7 -7 -6 -6 -6 -6 -6 -6 -5 -4 -4 -4 -3 -------- Run | Scr Mat Mat Sto Rec Fac Low Dat Pro Fac Ext Cet Arc Hub Fac Fac Upp Upp Res Total Allies 24 | . . . 10 . . . . 1 . 13 . . . . . . . . Largest Group 10 | . . . 10 . . . . 1 . 8 3 . . . . . . . Highest-Rated Group 334 | . . . 88 . . . . 94 . 334 87 . . . . . . . Highest-Rated Ally 156 | . . . 16 . . . . 94 . 156 31 . . . . . . . Total Orders 1 | . . . 1 . . . . . . . . . . . . . . . EXPLORE 1 | . . . 1 . . . . . . . . . . . . . . . Ally Attacks 117 | . . . 31 . . . . 13 . 69 4 . . . . . . . Total Damage 2454 | . . . 309 . . . . 473 . 1589 83 . . . . . . . Kills 20 | . . . 4 . . . . 2 . 14 . . . . . . . . Allies Corrupted . | . . . . . . . . . . . . . . . . . . . Allies Melted . | . . . . . . . . . . . . . . . . . . . Intel | -11 -10 -9 -9 -9 -7 -7 -7 -6 -6 -6 -6 -6 -6 -5 -4 -4 -4 -3 ------- Run | Scr Mat Mat Sto Rec Fac Low Dat Pro Fac Ext Cet Arc Hub Fac Fac Upp Upp Res Robot Analysis Total 2 | . . . 1 . . . . . . 1 . . . . . . . . Derelict Logs Recovered 5 | . . . . . . . . 3 . . . . . . . 1 1 . Drone Launches 2 | . . . 2 . . . . . . . . . . . . . . . Drone Recoveries . | . . . . . . . . . . . . . . . . . . . Exploration | -11 -10 -9 -9 -9 -7 -7 -7 -6 -6 -6 -6 -6 -6 -5 -4 -4 -4 -3 ------------- Run | Scr Mat Mat Sto Rec Fac Low Dat Pro Fac Ext Cet Arc Hub Fac Fac Upp Upp Res Turns Passed 18412 | 89 454 872 1392 318 2453 64 122 1624 3024 1214 503 377 318 1809 1107 795 955 922 Spaces Moved 9892 | 64 216 450 592 185 1386 34 81 939 1733 581 277 181 160 809 480 477 711 536 Core 52 | 33 . . . . . . . . . . . . . 19 . . . . Treads 882 | . . . . . . . . . . . . . . 37 134 477 57 177 Legs 7703 | 31 216 450 592 185 1386 34 81 939 1733 581 277 181 160 511 346 . . . Wheels 1013 | . . . . . . . . . . . . . . . . . 654 359 Hover 242 | . . . . . . . . . . . . . . 242 . . . . Flight . | . . . . . . . . . . . . . . . . . . . Fastest Speed 50 | 50 120 120 120 150 122 152 152 125 120 150 150 150 120 61 155 155 90 85 Average Speed 140 | 114 144 149 149 150 148 152 152 129 132 150 150 150 141 145 180 155 110 113 Slowest Speed 650 | 150 150 150 150 150 153 152 152 156 150 150 150 150 150 650 270 155 180 220 Overloaded Moves . | . . . . . . . . . . . . . . . . . . . Propulsion Burnouts . | . . . . . . . . . . . . . . . . . . . Robots Hopped . | . . . . . . . . . . . . . . . . . . . Cave-ins Triggered . | . . . . . . . . . . . . . . . . . . . Exploration Rate (%) 47 | 4 40 31 71 66 27 8 69 95 30 87 91 90 19 18 12 69 67 11 Regions Visited 18 Branch Regions 11 Pre-discovered Areas 1 | . . . . . . . 1 . . . . . . . . . . . Known Exits Taken 4 | . . . 1 . . . . . 1 1 . . 1 . . . . . Unknown Exits Taken 14 | 1 1 1 . 1 1 1 1 1 . . 1 1 . 1 1 1 1 . Scrap Searched 8 | . . . . . . 1 . 3 . . . . . . . 2 2 . Spaces Dug 16 | . . 8 . . 2 . . . . 2 . 2 . . 2 . . . Terrain Destroyed 902 | . 47 107 28 6 19 4 . 116 139 58 167 17 161 22 5 3 2 1 Melee 5 | . . . . . . . . . . 1 . 2 . . 2 . . . Projectile 76 | . . . . . 19 4 . 9 5 6 4 2 1 19 1 3 2 1 AOE 821 | . 47 107 28 6 . . . 107 134 51 163 13 160 3 2 . . . Actions | -11 -10 -9 -9 -9 -7 -7 -7 -6 -6 -6 -6 -6 -6 -5 -4 -4 -4 -3 --------- Run | Scr Mat Mat Sto Rec Fac Low Dat Pro Fac Ext Cet Arc Hub Fac Fac Upp Upp Res Total 12871 | 78 277 604 969 203 1633 41 80 1258 2248 856 315 243 209 1176 606 514 813 748 Wait 1526 | . 5 87 255 . 128 6 . 258 347 128 6 31 17 138 21 3 5 91 Move 9874 | 63 215 449 591 184 1385 33 80 938 1732 580 276 180 159 808 479 476 710 536 Hop . | . . . . . . . . . . . . . . . . . . . Pick Up 105 | 9 1 8 15 . 7 . . 5 11 1 2 1 1 12 8 3 10 11 Fast Attach 160 | 3 4 10 12 . 10 . . 4 13 1 3 2 4 38 13 4 13 26 Attach 62 | 3 2 1 . . 5 . . 9 4 . 2 . 4 20 1 1 6 4 Detach 12 | . . 2 . . 1 . . 1 2 . 1 . 1 3 1 . . . Swap 77 | . 4 4 15 . 15 . . 3 10 3 . . . 11 2 4 2 4 Drop 148 | . 1 15 22 . 19 . . 1 22 5 2 3 1 8 13 5 8 23 Fire 590 | . 45 28 58 9 63 2 . 38 53 34 21 21 17 102 23 11 28 37 Melee 161 | . . . . . . . . . 54 6 2 5 5 28 45 . . 16 Ram . | . . . . . . . . . . . . . . . . . . . Kick 8 | . . . . . . . . . . . . . . 8 . . . . Crush 38 | . . . . . . . . . . . . . . . . 7 31 . Escape Stasis 10 | . . . . . . . . . . 10 . . . . . . . . Rewire 99 | . . . . 10 . . . 1 . 88 . . . . . . . . Trap . | . . . . . . . . . . . . . . . . . . . Miscellaneous 1 | . . . 1 . . . . . . . . . . . . . . . Route ------- -11/Scrapyard -10/Materials -9/Materials -9/Storage -9/Recycling -7/Factory -7/Lower Caves -7/Data Miner -6/Proximity Caves -6/Factory (discovered 2 exits: [*Low] / *Ext) -6/Extension (discovered 3 exits: *Fac x2 / *Cet) -6/Cetus (discovered 2 exits: *Fac / *Arc) -6/Archives (discovered 3 exits: *Fac / *Hub x2) -6/Hub_04(d) -5/Factory (discovered 2 exits: *Fac / [*Upp]) -4/Factory (discovered 2 exits: *Res / [*Upp]) -4/Upper Caves -4/Upper Caves -3/Research (discovered 1 exit: Res) History --------- Turn | Location | Event 19 | -11/Scrapyard | Discovered new exit (range 16) 90 | -11/Scrapyard | Entered Materials 312 | -10/Materials | Build established: Mutant 457 | -10/Materials | Lost 3 parts (3w) 513 | -10/Materials | Discovered new exit (range 8) 544 | -10/Materials | Entered another Materials area 544 | -9/Materials | Evolved 2 slots: Weapon x2 551 | -9/Materials | Lost 3 parts (1p2w) 1227 | -9/Materials | Discovered new exit (range 15) 1416 | -9/Materials | Entered Storage 1829 | -9/Storage | Build established: Gunner 1991 | -9/Storage | Garrison activated, responded to threat 2422 | -9/Storage | Assisted by bots powering up and referring to "LRC-V3" 2575 | -9/Storage | Repaired Disposable Heat Sink 2602 | -9/Storage | Repaired Lrg. Storage Unit 2659 | -9/Storage | Repaired Cooling System 2699 | -9/Storage | Identified exit to Recycling 2699 | -9/Storage | Central database locked down 2737 | -9/Storage | Build established: Commander-Gunner 2802 | -9/Storage | Used back door to open Recycling access 2808 | -9/Storage | Entered Recycling 2877 | -9/Recycling | Spotter reported a threat 2889 | -9/Recycling | Spotter reported a threat 2899 | -9/Recycling | Spotter reported a threat 2902 | -9/Recycling | Spotter reported a threat 2937 | -9/Recycling | Spotter reported a threat 2963 | -9/Recycling | Spotter reported a threat 2972 | -9/Recycling | Spotter reported a threat 2974 | -9/Recycling | Spotter reported a threat 3010 | -9/Recycling | Spotter reported a threat 3025 | -9/Recycling | Spotter reported a threat 3027 | -9/Recycling | Spotter reported a threat 3028 | -9/Recycling | Spotter reported a threat 3098 | -9/Recycling | Build established: Gunner 3107 | -9/Recycling | Discovered new exit (range 5) 3112 | -9/Recycling | Spotter reported a threat 3126 | -9/Recycling | Entered Factory 3126 | -7/Factory | Evolved 4 slots: Propulsion x2, Utility x2 3432 | -7/Factory | Build established: Tank 3526 | -7/Factory | First assault squad dispatched 4063 | -7/Factory | Repaired Imp. Weapon Shielding 5431 | -7/Factory | Discovered new exit (range 10) 5579 | -7/Factory | Entered Lower Caves 5585 | -7/Lower Caves | Encountered a Warlord checkpoint 5613 | -7/Lower Caves | A Derelict revealed a hidden shortcut to meet someone special 5643 | -7/Lower Caves | Entered Data Miner 5643 | -7/Data Miner | Discovered new exit (range 6) 5672 | -7/Data Miner | Met Data Miner 5703 | -7/Data Miner | Learned location of Section 7 (-2) 5703 | -7/Data Miner | Acquired the access code to Warlord's prototype stash 5730 | -7/Data Miner | Received God Mode back door access code from Data Miner 5765 | -7/Data Miner | Entered Proximity Caves 5892 | -6/Proximity Caves | Escorted by Enhanced Grunt 5905 | -6/Proximity Caves | Spotted B-75 Beast 5918 | -6/Proximity Caves | Destroyed B-75 Beast 6054 | -6/Proximity Caves | Found Alien Artifact 6054 | -6/Proximity Caves | Identified Dimensional Node Initializer 6054 | -6/Proximity Caves | Initialized slip node 6678 | -6/Proximity Caves | Learned 8 Factory zone layouts 6692 | -6/Proximity Caves | Learned 4 Factory zone layouts 6786 | -6/Proximity Caves | Attracted the attention of an 0b10 base 6835 | -6/Proximity Caves | Destroyed 7 combat bots 6845 | -6/Proximity Caves | Lost 5 parts (1n1u3w) 6956 | -6/Proximity Caves | Lost 3 parts (1u2w) 7109 | -6/Proximity Caves | Discovered new exit (range 6) 7230 | -6/Proximity Caves | Build established: Gunner 7389 | -6/Proximity Caves | Entered Factory 7389 | -6/Factory | Evolved 2 slots: Power x1, Utility x1 7390 | -6/Factory | Identified exit to Extension 8653 | -6/Factory | Build established: Tank 9139 | -6/Factory | Build established: Mutant 9889 | -6/Factory | Discovered new exit (range 9) 10189 | -6/Factory | First assault squad dispatched 10218 | -6/Factory | Incoming assault squad redirected 10413 | -6/Factory | Entered Extension 10686 | -6/Extension | Rescued A7 10863 | -6/Extension | Rescued a captive Derelict 10936 | -6/Extension | Spotted B-75 Beast 10982 | -6/Extension | Spotted B-75 Beast 10989 | -6/Extension | Allies destroyed B-75 Beast 11001 | -6/Extension | Extracted ID and sensor layout for unrecognized location from A7's data core 11012 | -6/Extension | Destroyed B-75 Beast 11041 | -6/Extension | Discovered new exit (range 3) 11058 | -6/Extension | Identified exit to Cetus 11058 | -6/Extension | Identified exit to Factory 11198 | -6/Extension | Rescued a captive Derelict 11260 | -6/Extension | Energy Cycler disabled 11263 | -6/Extension | Rescued a captive Derelict 11627 | -6/Extension | Entered Cetus 11627 | -6/Cetus | Accompanied by 3 allies 11647 | -6/Cetus | Spotted Cetus Guard 11647 | -6/Cetus | Spotted Cetus Guard 11655 | -6/Cetus | Spotted Cetus Guard 11656 | -6/Cetus | Spotted Cetus Guard 11666 | -6/Cetus | Destroyed Cetus Guard 11672 | -6/Cetus | Destroyed Cetus Guard 11680 | -6/Cetus | Destroyed Cetus Guard 11680 | -6/Cetus | Destroyed Cetus Guard 11732 | -6/Cetus | Discovered exit to Factory (range 15) 11790 | -6/Cetus | Cetus Manufacturing Module disabled 12043 | -6/Cetus | Discovered new exit (range 15) 12057 | -6/Cetus | Destroyed 8 combat bots 12098 | -6/Cetus | Spotted Cetus Guard 12098 | -6/Cetus | Spotted Cetus Guard 12130 | -6/Cetus | Entered Archives 12362 | -6/Archives | Unable to access archive contents 12377 | -6/Archives | Unable to access archive contents 12392 | -6/Archives | Unable to access archive contents 12407 | -6/Archives | Unable to access archive contents 12414 | -6/Archives | Discovered new exit (range 15) 12468 | -6/Archives | Discovered exit to Factory (range 16) 12485 | -6/Archives | Discovered new exit (range 14) 12507 | -6/Archives | Entered Hub_04(d) 12593 | -6/Hub_04(d) | Lost 3 parts (3w) 12644 | -6/Hub_04(d) | Build established: Scavenger-Mutant 12728 | -6/Hub_04(d) | Garrison activated, responded to threat 12779 | -6/Hub_04(d) | Network Hub disabled 12792 | -6/Hub_04(d) | Discovered exit to Factory (range 16) 12814 | -6/Hub_04(d) | Spotted Lightning 12814 | -6/Hub_04(d) | Spotted Lightning 12816 | -6/Hub_04(d) | Spotted Lightning 12820 | -6/Hub_04(d) | Spotted Lightning 12825 | -6/Hub_04(d) | Entered Factory 12825 | -5/Factory | Evolved 2 slots: Power x1, Utility x1 12854 | -5/Factory | Lost 6 parts (2n1u3w) 13174 | -5/Factory | Build established: Generator-Gunner 13246 | -5/Factory | Lost 5 parts (1p1n1u2w) 13352 | -5/Factory | Lost 13 parts (2p3n2u6w) 13479 | -5/Factory | Lost 4 parts (1p1n2w) 13791 | -5/Factory | Core integrity fell below 50% 13791 | -5/Factory | System corruption reached 10% 13869 | -5/Factory | Repaired Imp. Medium Armor Plating 13928 | -5/Factory | Build established: Scavenger-Gunner 14037 | -5/Factory | Core integrity fell below 20% 14071 | -5/Factory | Lost 14 parts (3p1n4u6w) 14080 | -5/Factory | Discovered new exit (range 13) 14202 | -5/Factory | Lost 3 parts (1n2w) 14264 | -5/Factory | Fabricated Plasma Sword (x1) 14321 | -5/Factory | Found Prototype Launcher 14321 | -5/Factory | Identified Tesla Bomb Launcher 14364 | -5/Factory | Discovered new exit (range 5) 14622 | -5/Factory | Build established: Scavenger-Tank 14634 | -5/Factory | Entered another Factory area 14634 | -4/Factory | Evolved 2 slots: Propulsion x1, Utility x1 14865 | -4/Factory | Discovered new exit (range 18) 15337 | -4/Factory | System corruption reached 10% 15387 | -4/Factory | Lost 3 parts (1n1u1w) 15672 | -4/Factory | Discovered new exit (range 8) 15741 | -4/Factory | Entered Upper Caves 15890 | -4/Upper Caves | Build established: Generator-Tank 16296 | -4/Upper Caves | Learned 4 Research zone layouts 16347 | -4/Upper Caves | Encountered a Warlord checkpoint 16352 | -4/Upper Caves | Build established: Generator-Mutant 16405 | -4/Upper Caves | Attracted the attention of an 0b10 checkpoint 16526 | -4/Upper Caves | Discovered new exit (range 7) 16536 | -4/Upper Caves | Entered another Upper Caves area 16688 | -4/Upper Caves | P-70 Sage assimilated allied A4-A6F(S) 16720 | -4/Upper Caves | Lost 7 parts (1p2n1u3w) 16832 | -4/Upper Caves | Learned Research emergency access door positions 16987 | -4/Upper Caves | Discovered new exit (range 20) 16995 | -4/Upper Caves | Attracted the attention of an 0b10 checkpoint 17240 | -4/Upper Caves | Build established: Scavenger-Gunner 17349 | -4/Upper Caves | Spotted B-86 Titan 17388 | -4/Upper Caves | Lost 3 parts (1n2w) 17454 | -4/Upper Caves | Lost 7 parts (1p3u3w) 17491 | -4/Upper Caves | Entered Research 17491 | -3/Research | Evolved 2 slots: Propulsion x1, Utility x1 17492 | -3/Research | Identified exit to Research 17634 | -3/Research | Build established: Scavenger-Mutant 17739 | -3/Research | Found Prototype Processor 17739 | -3/Research | Identified Exp. Melee Analysis Suite 18328 | -3/Research | Build established: Generator-Tank 18402 | -3/Research | System corruption reached 10% 18413 | -3/Research | Self-destructed Last Messages --------------- 18397_ System corrupted: Matter fused (-5). 18397_ P-80 Master resets P-80 Master, system corruption cleaned. 18398_ Critical hit. 18398_ Gamma Rifle destroyed. 18401_ Particle Reactor destroyed. 18403_ Critical hit. 18403_ Centrium Heavy Treads destroyed. 18406_ Gamma Rifle destroyed. 18407_ C-30 ARC bursts open, deploying its payload. 18407_ G-73 Enforcer unfolds itself. 18407_ G-67 Veteran unfolds itself. 18407_ Adv. Heavy Treads destroyed. 18407_ Imp. Dynamic Insulation System destroyed. 18407_ Destroyed Gamma Rifle. 18407_ Quantum Rifle destroyed. 18407_ Particle Reactor destroyed. 18410_ System corrupted: Hvy. Pick targeting data glitched. 18410_ P-80 Master resets P-80 Master, system corruption cleaned. 18411_ K-01 Serf collects debris. 18413_ Imp. Core Shielding destroyed. Map ----- +----------------------------------------------------+ | ?????????????????????????????????????????????????? | | ?????????????????????????????????????????????????? | | ?????????????????????????????????????????????????? | | ?????????????????????????????????????????????????? | | ??+?+????????????????????????????????????????????? | | ?????????????????????????????????????????????????? | | ??????+??????????????????????????????????????????? | | ?????????????????????????????????????????????????? | | ?????????????????????????????????????????????????? | | ?????????????????????????????????????????????????? | | ?????????????????????????????????????????????????? | | ?????????????????????????????????????????????????? | | ?????????????????????????????????????????????????? | | ?????????????????????????????????????????????????? | | ?????????????????????????????????????????????????? | | ?????????????????????????????????????????????????? | | ?????????????????????????????????????????????????? | | ????????????????? ??????????????????????????????? | | ??????????????# ###########???????????????????? | | ??????????????# # #???????????????????? | | ??????????????# # k #???????????????????? | | ??????????????# # k"" #???????????????????? | | ??????????????# # "F #???????????????????? | | ??????????????# # " % #???????????????????? | | ??????????????# u "*[[ #???????????????????? | | ??????????????# # % @ #???????????????????? | | ??????????????# # pggp #???????????????????? | | ??????????????# #####g####################????? | | ??????????????# g ??? | | ??????????????# ??? | | ??????????????# % ??? | | ??????????????# """ ???? | | ??????????????# #### ########## """????????? | | ??????????????# ####+#####??????? """????????? | | ??????????????# # #?????????? ???????? | | ??????????????# # #????????????????????? | | ??????????????# # [ #????????????????????? | | ??????????????# # #????????????????????? | | ??????????????# + #????????????????????? | | ???????????#### # [ #????????????????????? | | ???????????#""# # """ #????????????????????? | | ############T"# # """ #?????????????????#### | | # # """ #?????????????????# " | | # ###############????????????# " | | # #?????# !!!#????????????# " | | + #?????# *!!#????????????# " | | # ########?????# * !#????????????# | | = # ############## * !#????????????# | | = # # ## #????????????# | | # # ## #????????????# | +----------------------------------------------------+ Best States ------------- Heat Dissipation 103 Coolant Potential 80 Energy Generation 59 Energy Capacity 820 Matter Stores 300 Matter Capacity 300 Sight Range 23 Terrain Scan Density 10 Jamming Range 16 Cloak Strength 2 EM Shielding 3 Armor Coverage 600 Resistance: TH 30 Core Shielding 30 Weapon Shielding 66 Point Defense Rating 80 Evasion (%) 52 Targeting Accuracy 8 Melee Accuracy 12 Armor Integrity Analysis 50 Recoil Reduction 6 Particle Charging 20 Kinecelleration 40 Item Schematics ----------------- Disposable Heat Sink | -9/Storage | Hacked EM Shotgun | -7/Factory | Extracted Dynamic Insulation System | -7/Factory | Extracted Adv. Signal Interpreter | -7/Factory | Extracted Combat Drone Bay | -7/Data Miner | Free Lgt. Regenerative Plating | -7/Data Miner | Free Exp. Cesium-ion Thruster | -7/Data Miner | Free Exp. Terrain Scanner | -7/Data Miner | Free Exp. Terrain Scan Processor | -7/Data Miner | Free Mni. Smartbomb Launcher | -7/Data Miner | Free Plasma Sword | -7/Data Miner | Free Overload Amplifier | -6/Extension | Hacked Disruptor Cannon | -5/Factory | Scanalyzed Imp. Heavy Laser | -3/Research | Scanalyzed Robot Schematics ------------------ S-27 Virus | -7/Data Miner | Free G-50 Soldier | -7/Data Miner | Free X-72 Disruptor | -7/Data Miner | Free I-36 Angel | -7/Data Miner | Free Fabricated ------------ Plasma Sword | x1 | -5/Factory Alien Tech Used ----------------- Dimensional Node Initializer Achievements -------------- Alien Tech Explorer Tank Challenges ------------ None Game ------ Seed SupersonicHypervelocityUnit Manual? 0 Play Time 03:04:55 Cumulative 51.6 hours Start 2020.07.17 @ 12:17:47 End 2020.07.17 @ 15:38:46 Sessions 1 Manual Loads 0 Difficulty Rogue Special Mode None Game No. 65 Rogue 65 Adventurer 0 Explorer 0 Win Type - Total 0 Types 0/0/0/0/0/0/0 Lore% 36 Gallery% 48 Achievement% 39 Wizard Run 0 Options --------- ASCII 0 Keyboard 0 Movement Numpad Keybinds 0 Fullscreen 2 Font 18/SmallcapsGlow Map View 76x50 Tactical HUD 1 Map Filters NONE Filters NONE Steam 1 RUN: d2d7d10d-859c-4325-b56a-aca31adcd11f